[Event "Live Chess"]
[Site "Chess.com"]
[Date "2023.05.20"]
[Round "-"]
[White "wot-not"]
[Black "blowerd"]
[Result "1-0"]
[WhiteElo "1526"]
[BlackElo "1399"]
[TimeControl "300"]
[EndTime "15:24:53 PDT"]
[Termination "wot-not won by checkmate"]

1. e4 {[%clk 0:04:54.9]} 1... e5 {[%clk 0:04:58.9]} 2. f4 {[%clk 0:04:54.3]}
2... exf4 {[%clk 0:04:56.3]} 3. Nf3 {[%clk 0:04:53.3]} 3... Be7 {[%clk
0:04:55.4]} 4. d4 {[%clk 0:04:52.8]} 4... Bh4+ {[%clk 0:04:54.2]} 5. Kd2 {[%clk
0:04:51]} 5... Qe7 {[%clk 0:04:47.5]} 6. e5 {[%clk 0:04:47.1]} 6... Nc6 {[%clk
0:04:42.8]} 7. c3 {[%clk 0:04:45.9]} 7... d6 {[%clk 0:04:37.7]} 8. Bb5 {[%clk
0:04:44.6]} 8... a6 {[%clk 0:04:25.8]} 9. Bxc6+ {[%clk 0:04:39.5]} 9... bxc6
{[%clk 0:04:24.2]} 10. Qa4 {[%clk 0:04:37.5]} 10... Bd7 {[%clk 0:04:08.9]} 11.
exd6 {[%clk 0:04:33.4]} 11... Qxd6 {[%clk 0:04:07.7]} 12. Kc2 {[%clk 0:04:20.8]}
12... Bf5+ {[%clk 0:04:00.4]} 13. Kd1 {[%clk 0:04:10.9]} 13... Bg4 {[%clk
0:03:54.9]} 14. Bxf4 {[%clk 0:04:01.6]} 14... Bxf3+ {[%clk 0:03:52.3]} 15. gxf3
{[%clk 0:03:59.6]} 15... Qd5 {[%clk 0:03:43]} 16. Nd2 {[%clk 0:03:49.5]} 16...
Bf6 {[%clk 0:03:33.6]} 17. Re1+ {[%clk 0:03:48]} 17... Ne7 {[%clk 0:03:31.8]}
18. Bxc7 {[%clk 0:03:35.9]} 18... O-O {[%clk 0:03:26]} 19. Qc4 {[%clk
0:03:33.3]} 19... Qxc4 {[%clk 0:03:08.1]} 20. Nxc4 {[%clk 0:03:32.1]} 20... Nd5
{[%clk 0:03:07.2]} 21. Be5 {[%clk 0:03:15]} 21... Rad8 {[%clk 0:02:55.3]} 22.
Bxf6 {[%clk 0:03:10.7]} 22... Nxf6 {[%clk 0:02:52.9]} 23. Ne5 {[%clk 0:03:07.5]}
23... c5 {[%clk 0:02:50]} 24. Kc2 {[%clk 0:02:57.4]} 24... cxd4 {[%clk
0:02:48.3]} 25. Nc6 {[%clk 0:02:56.7]} 25... d3+ {[%clk 0:02:43.9]} 26. Kb3
{[%clk 0:02:53.8]} 26... Rd6 {[%clk 0:02:38]} 27. Nd4 {[%clk 0:02:44.8]} 27...
Rb8+ {[%clk 0:02:33]} 28. Ka3 {[%clk 0:02:42]} 28... Rd5 {[%clk 0:02:25.6]} 29.
b4 {[%clk 0:02:39.7]} 29... h6 {[%clk 0:02:19.5]} 30. Kb3 {[%clk 0:02:36]} 30...
Rdd8 {[%clk 0:02:01.6]} 31. Kc4 {[%clk 0:02:33.8]} 31... Nd5 {[%clk 0:01:55.9]}
32. Kxd3 {[%clk 0:02:24]} 32... Nf4+ {[%clk 0:01:53.5]} 33. Ke4 {[%clk
0:02:11.4]} 33... Ng6 {[%clk 0:01:44.7]} 34. Nc6 {[%clk 0:02:04.3]} 34... Re8+
{[%clk 0:01:42.4]} 35. Kd4 {[%clk 0:02:00.4]} 35... Rxe1 {[%clk 0:01:22.8]} 36.
Rxe1 {[%clk 0:01:58.4]} 36... Rc8 {[%clk 0:01:20.4]} 37. Ne7+ {[%clk 0:01:54.8]}
37... Nxe7 {[%clk 0:01:18.3]} 38. Rxe7 {[%clk 0:01:53.9]} 38... Rd8+ {[%clk
0:01:12.2]} 39. Kc5 {[%clk 0:01:47]} 39... Rd2 {[%clk 0:01:10.9]} 40. Re8+
{[%clk 0:01:41.3]} 40... Kh7 {[%clk 0:01:09]} 41. Kb6 {[%clk 0:01:38.3]} 41...
Rxa2 {[%clk 0:01:07.4]} 42. c4 {[%clk 0:01:37.4]} 42... Rxh2 {[%clk 0:01:05.3]}
43. c5 {[%clk 0:01:36.9]} 43... Rf2 {[%clk 0:01:03.5]} 44. c6 {[%clk 0:01:36.3]}
44... Rxf3 {[%clk 0:01:02.4]} 45. c7 {[%clk 0:01:35.9]} 45... Rf6+ {[%clk
0:01:00.9]} 46. Kb7 {[%clk 0:01:34.5]} 46... Rf5 {[%clk 0:00:55.2]} 47. c8=Q
{[%clk 0:01:33.1]} 47... Rb5+ {[%clk 0:00:53.9]} 48. Kxa6 {[%clk 0:01:31.6]}
48... Rxb4 {[%clk 0:00:52.3]} 49. Rh8+ {[%clk 0:01:28.6]} 49... Kg6 {[%clk
0:00:50.3]} 50. Qc2+ {[%clk 0:01:23.3]} 50... Kf6 {[%clk 0:00:47.2]} 51. Qc3+
{[%clk 0:01:22.2]} 51... Ke6 {[%clk 0:00:43.4]} 52. Qxb4 {[%clk 0:01:21.2]}
52... Kd7 {[%clk 0:00:42.2]} 53. Qd4+ {[%clk 0:01:19.4]} 53... Ke7 {[%clk
0:00:41.2]} 54. Qxg7 {[%clk 0:01:18.2]} 54... h5 {[%clk 0:00:38.7]} 55. Rh7
{[%clk 0:01:17.3]} 55... h4 {[%clk 0:00:37.7]} 56. Qxf7+ {[%clk 0:01:16.8]}
56... Kd6 {[%clk 0:00:36.6]} 57. Rh5 {[%clk 0:01:15.7]} 57... Kc6 {[%clk
0:00:34]} 58. Qg6+ {[%clk 0:01:15.4]} 58... Kd7 {[%clk 0:00:32.9]} 59. Rh7+
{[%clk 0:01:15.1]} 59... Kd8 {[%clk 0:00:30.8]} 60. Qg8# {[%clk 0:01:14.7]} 1-0

[Event "Live Chess"]
[Site "Chess.com"]
[Date "2023.05.20"]
[Round "-"]
[White "Stanbad1"]
[Black "sanjesh_ananda"]
[Result "1-0"]
[WhiteElo "2398"]
[BlackElo "1055"]
[TimeControl "300"]
[EndTime "15:24:55 PDT"]
[Termination "Stanbad1 won on time"]

1. d4 {[%clk 0:04:57.2]} 1... d5 {[%clk 0:04:58]} 2. Nc3 {[%clk 0:04:56.4]} 2...
Nf6 {[%clk 0:04:51.3]} 3. Bf4 {[%clk 0:04:55.2]} 3... Bd7 {[%clk 0:04:34.4]} 4.
e3 {[%clk 0:04:52.9]} 4... e6 {[%clk 0:04:28.1]} 5. Nf3 {[%clk 0:04:48.4]} 5...
Nc6 {[%clk 0:04:23.7]} 6. Bb5 {[%clk 0:04:43.3]} 6... Be7 {[%clk 0:04:11.8]} 7.
O-O {[%clk 0:04:30.2]} 7... O-O {[%clk 0:04:09.6]} 8. Re1 {[%clk 0:04:25.7]}
8... a6 {[%clk 0:04:01.7]} 9. Bd3 {[%clk 0:04:21.1]} 9... Bd6 {[%clk 0:03:51.4]}
10. Bxd6 {[%clk 0:04:17.9]} 10... cxd6 {[%clk 0:03:48.5]} 11. e4 {[%clk
0:04:15.7]} 11... dxe4 {[%clk 0:03:31.8]} 12. Nxe4 {[%clk 0:04:12]} 12... d5
{[%clk 0:03:24.1]} 13. Nc5 {[%clk 0:03:55.3]} 13... Bc8 {[%clk 0:03:05.5]} 14.
c3 {[%clk 0:03:48.7]} 14... b6 {[%clk 0:02:57.3]} 15. Nb3 {[%clk 0:03:44.3]}
15... Re8 {[%clk 0:02:47.1]} 16. Nc1 {[%clk 0:03:39.8]} 16... Qd6 {[%clk
0:02:27.2]} 17. Bf1 {[%clk 0:03:24.3]} 17... e5 {[%clk 0:02:02.3]} 18. dxe5
{[%clk 0:03:21.4]} 18... Nxe5 {[%clk 0:01:59.4]} 19. Nxe5 {[%clk 0:03:19.3]}
19... Rxe5 {[%clk 0:01:54.6]} 20. Rxe5 {[%clk 0:03:19.2]} 20... Qxe5 {[%clk
0:01:53]} 21. Nb3 {[%clk 0:03:19.1]} 21... Ng4 {[%clk 0:01:49.5]} 22. g3 {[%clk
0:03:15.8]} 22... Qh5 {[%clk 0:01:06]} 23. h3 {[%clk 0:03:09.9]} 23... Be6
{[%clk 0:00:27.8]} 24. Nd4 {[%clk 0:03:03.1]} 24... Re8 {[%clk 0:00:17.1]} 25.
Nxe6 {[%clk 0:03:00.2]} 25... Rxe6 {[%clk 0:00:14.5]} 26. Qxg4 {[%clk
0:02:58.5]} 26... Qe5 {[%clk 0:00:10]} 27. Qd4 {[%clk 0:02:54.9]} 27... Qf5
{[%clk 0:00:06.4]} 28. Bg2 {[%clk 0:02:51.4]} 28... Re8 {[%clk 0:00:01.8]} 29.
Qxd5 {[%clk 0:02:41.1]} 1-0

[Event "Live Chess"]
[Site "Chess.com"]
[Date "2023.05.20"]
[Round "-"]
[White "JackCheetham1"]
[Black "Pablo_dmp"]
[Result "0-1"]
[WhiteElo "1694"]
[BlackElo "1876"]
[TimeControl "300"]
[EndTime "15:25:16 PDT"]
[Termination "Pablo_dmp won by resignation"]

1. e4 {[%clk 0:04:58.7]} 1... c6 {[%clk 0:04:58.2]} 2. d4 {[%clk 0:04:57.7]}
2... d5 {[%clk 0:04:57.6]} 3. e5 {[%clk 0:04:56.1]} 3... c5 {[%clk 0:04:57]} 4.
c3 {[%clk 0:04:55]} 4... Nc6 {[%clk 0:04:55.7]} 5. Nf3 {[%clk 0:04:54.2]} 5...
Bg4 {[%clk 0:04:51.7]} 6. Bb5 {[%clk 0:04:48.2]} 6... cxd4 {[%clk 0:04:49]} 7.
cxd4 {[%clk 0:04:46.5]} 7... Qb6 {[%clk 0:04:40.5]} 8. Bxc6+ {[%clk 0:04:43.4]}
8... bxc6 {[%clk 0:04:40.4]} 9. Nc3 {[%clk 0:04:18.3]} 9... e6 {[%clk
0:04:34.8]} 10. a3 {[%clk 0:03:58.8]} 10... Ne7 {[%clk 0:04:29.6]} 11. Qe2
{[%clk 0:03:38.9]} 11... Nf5 {[%clk 0:04:27]} 12. Be3 {[%clk 0:03:37.7]} 12...
Rb8 {[%clk 0:04:10.4]} 13. Rb1 {[%clk 0:03:10.2]} 13... Bxf3 {[%clk 0:04:07]}
14. gxf3 {[%clk 0:03:08]} 14... Nxd4 {[%clk 0:04:05.4]} 15. Bxd4 {[%clk
0:03:06.5]} 15... Qxd4 {[%clk 0:04:03.8]} 16. O-O {[%clk 0:02:52.7]} 16... Bc5
{[%clk 0:03:44.9]} 17. Rfd1 {[%clk 0:02:43.6]} 17... Qh4 {[%clk 0:03:37]} 18.
Na4 {[%clk 0:02:34.8]} 18... Bb6 {[%clk 0:03:32]} 19. Nxb6 {[%clk 0:02:31.5]}
19... axb6 {[%clk 0:03:31.9]} 20. Rbc1 {[%clk 0:02:24.3]} 20... Rc8 {[%clk
0:03:13.3]} 21. Qa6 {[%clk 0:02:14.9]} 21... O-O {[%clk 0:03:08.4]} 22. Qxb6
{[%clk 0:02:05.5]} 22... Qg5+ {[%clk 0:03:06]} 23. Kh1 {[%clk 0:01:57.6]} 23...
Qxe5 {[%clk 0:03:05.9]} 24. Qe3 {[%clk 0:01:46.3]} 24... Qxb2 {[%clk 0:03:03.3]}
25. Rb1 {[%clk 0:01:40]} 25... Qf6 {[%clk 0:02:58.5]} 26. a4 {[%clk 0:01:32.8]}
26... c5 {[%clk 0:02:57.7]} 27. Rdc1 {[%clk 0:01:29.4]} 27... c4 {[%clk
0:02:56.8]} 28. a5 {[%clk 0:01:17.3]} 28... d4 {[%clk 0:02:54.9]} 29. Qe4 {[%clk
0:01:13.5]} 29... c3 {[%clk 0:02:50.6]} 30. a6 {[%clk 0:01:09.4]} 30... e5
{[%clk 0:02:38.8]} 31. a7 {[%clk 0:01:04.6]} 31... Ra8 {[%clk 0:02:36.3]} 32.
Qxa8 {[%clk 0:00:55.9]} 32... Rxa8 {[%clk 0:02:10.5]} 33. Rb8+ {[%clk
0:00:52.5]} 33... Qd8 {[%clk 0:02:10]} 34. Rcb1 {[%clk 0:00:37.4]} 34... c2
{[%clk 0:02:02.8]} 35. Rxd8+ {[%clk 0:00:30.3]} 35... Rxd8 {[%clk 0:02:01.4]}
36. Rb8 {[%clk 0:00:20.3]} 36... c1=Q+ {[%clk 0:01:59.7]} 37. Kg2 {[%clk
0:00:19.9]} 37... Qc7 {[%clk 0:01:57.2]} 38. Rxd8+ {[%clk 0:00:05.8]} 38... Qxd8
{[%clk 0:01:57.1]} 0-1

[Event "Live Chess"]
[Site "Chess.com"]
[Date "2023.05.20"]
[Round "-"]
[White "JanMur7"]
[Black "Ferrarifan27"]
[Result "0-1"]
[WhiteElo "1949"]
[BlackElo "2069"]
[TimeControl "300"]
[EndTime "15:25:24 PDT"]
[Termination "Ferrarifan27 won by resignation"]

1. e4 {[%clk 0:04:45.7]} 1... e5 {[%clk 0:04:57.9]} 2. Nf3 {[%clk 0:04:44.7]}
2... Nc6 {[%clk 0:04:54.8]} 3. Nc3 {[%clk 0:04:44]} 3... Nf6 {[%clk 0:04:52.3]}
4. Nxe5 {[%clk 0:04:42.5]} 4... Nxe5 {[%clk 0:04:50.6]} 5. d4 {[%clk 0:04:41.9]}
5... Ng6 {[%clk 0:04:49.7]} 6. e5 {[%clk 0:04:41.5]} 6... Ng8 {[%clk 0:04:48.6]}
7. Bc4 {[%clk 0:04:41.1]} 7... d6 {[%clk 0:04:46.1]} 8. Qf3 {[%clk 0:04:39.9]}
8... Be6 {[%clk 0:04:37.6]} 9. Qxb7 {[%clk 0:04:38.5]} 9... Rb8 {[%clk
0:04:26.3]} 10. Qc6+ {[%clk 0:04:36]} 10... Bd7 {[%clk 0:04:25.6]} 11. Qd5
{[%clk 0:04:34.7]} 11... Be6 {[%clk 0:04:21.8]} 12. Qc6+ {[%clk 0:04:33.4]}
12... Qd7 {[%clk 0:04:19.1]} 13. Qxd7+ {[%clk 0:04:16.8]} 13... Kxd7 {[%clk
0:04:10.4]} 14. Bxe6+ {[%clk 0:04:14.7]} 14... fxe6 {[%clk 0:04:07.7]} 15. exd6
{[%clk 0:04:13.7]} 15... Bxd6 {[%clk 0:04:04.8]} 16. O-O {[%clk 0:04:13.2]}
16... Nf6 {[%clk 0:04:03.1]} 17. f4 {[%clk 0:04:06.7]} 17... Rhf8 {[%clk
0:03:59.4]} 18. f5 {[%clk 0:04:03]} 18... exf5 {[%clk 0:03:58.2]} 19. Rxf5
{[%clk 0:04:02.9]} 19... Ng4 {[%clk 0:03:48.7]} 20. Rxf8 {[%clk 0:03:59.1]}
20... Bxh2+ {[%clk 0:03:42.7]} 21. Kh1 {[%clk 0:03:55.9]} 21... Rxf8 {[%clk
0:03:41.8]} 22. Bg5 {[%clk 0:03:50.7]} 0-1

[Event "Live Chess"]
[Site "Chess.com"]
[Date "2023.05.20"]
[Round "-"]
[White "Tushinskiy"]
[Black "LanceMaster23"]
[Result "1-0"]
[WhiteElo "2154"]
[BlackElo "1860"]
[TimeControl "300"]
[EndTime "15:25:36 PDT"]
[Termination "Tushinskiy won by resignation"]

1. d4 {[%clk 0:04:54.1]} 1... Nf6 {[%clk 0:04:59.2]} 2. c3 {[%clk 0:04:54]} 2...
d5 {[%clk 0:04:58.5]} 3. Nf3 {[%clk 0:04:53.9]} 3... Bf5 {[%clk 0:04:58]} 4. Bf4
{[%clk 0:04:53.3]} 4... e6 {[%clk 0:04:57.5]} 5. Nbd2 {[%clk 0:04:52.3]} 5... c6
{[%clk 0:04:57]} 6. Bg3 {[%clk 0:04:52.2]} 6... Nbd7 {[%clk 0:04:56.3]} 7. e3
{[%clk 0:04:51.7]} 7... h6 {[%clk 0:04:54.5]} 8. Be2 {[%clk 0:04:50.7]} 8... Be7
{[%clk 0:04:54.1]} 9. b4 {[%clk 0:04:49.1]} 9... a5 {[%clk 0:04:52.9]} 10. a3
{[%clk 0:04:48.1]} 10... axb4 {[%clk 0:04:51.9]} 11. axb4 {[%clk 0:04:48]} 11...
O-O {[%clk 0:04:51.2]} 12. O-O {[%clk 0:04:46.9]} 12... b5 {[%clk 0:04:47.6]}
13. Qb3 {[%clk 0:04:44.7]} 13... Ne4 {[%clk 0:04:41.9]} 14. Nxe4 {[%clk
0:04:43]} 14... Bxe4 {[%clk 0:04:41.8]} 15. Nd2 {[%clk 0:04:42]} 15... Bg6
{[%clk 0:04:40]} 16. Bf3 {[%clk 0:04:39.8]} 16... Nb6 {[%clk 0:04:36.7]} 17. e4
{[%clk 0:04:34.3]} 17... Nc4 {[%clk 0:04:33.4]} 18. Nxc4 {[%clk 0:04:32.9]}
18... bxc4 {[%clk 0:04:27.5]} 19. Qb2 {[%clk 0:04:29.7]} 19... dxe4 {[%clk
0:04:18.5]} 20. Be2 {[%clk 0:04:28.5]} 20... Qd5 {[%clk 0:04:11.3]} 21. Ra2
{[%clk 0:04:21]} 21... f5 {[%clk 0:03:12.2]} 22. Be5 {[%clk 0:04:17.6]} 22...
Bf6 {[%clk 0:02:52.5]} 23. Bxf6 {[%clk 0:04:15.6]} 23... gxf6 {[%clk 0:02:52.4]}
24. Rfa1 {[%clk 0:04:12.3]} 24... Rad8 {[%clk 0:02:39.3]} 25. Ra5 {[%clk
0:04:10.1]} 25... Qd6 {[%clk 0:02:28.8]} 26. Bxc4 {[%clk 0:04:08.1]} 26... Bf7
{[%clk 0:02:27.5]} 27. Ra6 {[%clk 0:04:03]} 27... Rc8 {[%clk 0:02:25.4]} 28. b5
{[%clk 0:03:59.5]} 28... Qf4 {[%clk 0:02:17.5]} 29. bxc6 {[%clk 0:03:52.6]}
29... e3 {[%clk 0:02:16.4]} 30. Qe2 {[%clk 0:03:50.3]} 30... exf2+ {[%clk
0:02:03.8]} 31. Qxf2 {[%clk 0:03:50.2]} 31... Qe4 {[%clk 0:01:54.4]} 32. Qg3+
{[%clk 0:03:43.6]} 32... Kh7 {[%clk 0:01:53.6]} 33. Qf3 {[%clk 0:03:38.6]} 33...
Qc2 {[%clk 0:01:37.4]} 34. Ra7 {[%clk 0:03:31.5]} 34... Kg6 {[%clk 0:00:57.1]}
35. Qg3+ {[%clk 0:03:19.5]} 35... Kh5 {[%clk 0:00:55.7]} 36. R7a2 {[%clk
0:03:12.1]} 36... f4 {[%clk 0:00:42.5]} 37. Qf3+ {[%clk 0:03:08.1]} 1-0

[Event "Live Chess"]
[Site "Chess.com"]
[Date "2023.05.20"]
[Round "-"]
[White "Nazar_777"]
[Black "Geomorph"]
[Result "0-1"]
[WhiteElo "1626"]
[BlackElo "1253"]
[TimeControl "300"]
[EndTime "15:25:36 PDT"]
[Termination "Geomorph won by checkmate"]

1. e3 {[%clk 0:04:58.5]} 1... e5 {[%clk 0:04:58.1]} 2. h4 {[%clk 0:04:52.5]}
2... c6 {[%clk 0:04:50.7]} 3. a3 {[%clk 0:04:51.5]} 3... d5 {[%clk 0:04:49.4]}
4. c4 {[%clk 0:04:50.9]} 4... Nf6 {[%clk 0:04:45.7]} 5. cxd5 {[%clk 0:04:50]}
5... cxd5 {[%clk 0:04:45]} 6. Nc3 {[%clk 0:04:49.1]} 6... Be6 {[%clk 0:04:42.3]}
7. Be2 {[%clk 0:04:48.4]} 7... Bd6 {[%clk 0:04:41.2]} 8. Qc2 {[%clk 0:04:47.8]}
8... Nc6 {[%clk 0:04:35.2]} 9. Nf3 {[%clk 0:04:47]} 9... e4 {[%clk 0:04:29]} 10.
Ng5 {[%clk 0:04:45.3]} 10... O-O {[%clk 0:04:18.6]} 11. b4 {[%clk 0:04:42.5]}
11... h6 {[%clk 0:04:15.9]} 12. Nxe6 {[%clk 0:04:36.6]} 12... fxe6 {[%clk
0:04:15.8]} 13. Bb2 {[%clk 0:04:35.4]} 13... Ne5 {[%clk 0:04:11.3]} 14. g4
{[%clk 0:04:33.3]} 14... Nfxg4 {[%clk 0:04:07.8]} 15. Bxg4 {[%clk 0:04:31.7]}
15... Nxg4 {[%clk 0:04:06.7]} 16. Ne2 {[%clk 0:04:18.9]} 16... Rxf2 {[%clk
0:04:00.4]} 17. Nf4 {[%clk 0:04:15.4]} 17... Rc8 {[%clk 0:03:25.8]} 18. Qb1
{[%clk 0:04:11.6]} 18... Qb6 {[%clk 0:02:46.2]} 19. Bd4 {[%clk 0:04:08.6]} 19...
Qb5 {[%clk 0:02:38.9]} 20. Qd1 {[%clk 0:04:00.2]} 20... g5 {[%clk 0:02:25.5]}
21. Qxg4 {[%clk 0:03:57.3]} 21... Bxf4 {[%clk 0:02:20]} 22. hxg5 {[%clk
0:03:48.5]} 22... Rf8 {[%clk 0:01:56.5]} 23. Qxe6+ {[%clk 0:03:39]} 23... Rf7
{[%clk 0:01:39.9]} 24. Qg4 {[%clk 0:03:36.9]} 24... Bxg5 {[%clk 0:01:36.2]} 25.
Rc1 {[%clk 0:03:29.3]} 25... Rf1+ {[%clk 0:01:33.2]} 26. Rxf1 {[%clk 0:02:59.6]}
26... Qxf1# {[%clk 0:01:30.6]} 0-1

[Event "Live Chess"]
[Site "Chess.com"]
[Date "2023.05.20"]
[Round "-"]
[White "lightningorderyt"]
[Black "f4nomore"]
[Result "0-1"]
[WhiteElo "518"]
[BlackElo "1416"]
[TimeControl "300"]
[EndTime "15:25:37 PDT"]
[Termination "f4nomore won by resignation"]

1. d4 {[%clk 0:04:57.7]} 1... g6 {[%clk 0:04:59.9]} 2. e4 {[%clk 0:04:56.5]}
2... Bg7 {[%clk 0:04:59.8]} 3. Nf3 {[%clk 0:04:54.8]} 3... d6 {[%clk 0:04:56.8]}
4. h3 {[%clk 0:04:51.7]} 4... Nf6 {[%clk 0:04:54.4]} 5. Nc3 {[%clk 0:04:47.2]}
5... O-O {[%clk 0:04:52.9]} 6. Bc4 {[%clk 0:04:42]} 6... Nbd7 {[%clk 0:04:45.2]}
7. b3 {[%clk 0:04:40.5]} 7... e6 {[%clk 0:04:43.2]} 8. Bb2 {[%clk 0:04:38.9]}
8... a6 {[%clk 0:04:41.5]} 9. O-O {[%clk 0:04:29.6]} 9... b5 {[%clk 0:04:38.6]}
10. Bd3 {[%clk 0:04:23.7]} 10... Bb7 {[%clk 0:04:33.7]} 11. a4 {[%clk
0:04:16.2]} 11... b4 {[%clk 0:04:31.1]} 12. Na2 {[%clk 0:04:14.2]} 12... a5
{[%clk 0:04:29.8]} 13. c3 {[%clk 0:04:06.1]} 13... c5 {[%clk 0:04:27.2]} 14.
cxb4 {[%clk 0:03:49.8]} 14... cxb4 {[%clk 0:04:23.6]} 15. e5 {[%clk 0:03:36.8]}
15... dxe5 {[%clk 0:04:15.3]} 16. dxe5 {[%clk 0:03:36.7]} 16... Nd5 {[%clk
0:04:10.2]} 17. Be4 {[%clk 0:03:26.3]} 17... Nc5 {[%clk 0:04:07.5]} 18. Bd3
{[%clk 0:03:14.8]} 18... Nxd3 {[%clk 0:04:00.3]} 19. Qxd3 {[%clk 0:03:14.7]}
19... Ba6 {[%clk 0:03:58.5]} 20. Qxa6 {[%clk 0:03:01.8]} 20... Rxa6 {[%clk
0:03:56.4]} 21. Nxb4 {[%clk 0:02:59.2]} 21... Nxb4 {[%clk 0:03:53.6]} 22. Nd4
{[%clk 0:02:58.3]} 0-1

[Event "Live Chess"]
[Site "Chess.com"]
[Date "2023.05.20"]
[Round "-"]
[White "LiamClery2020"]
[Black "parcellforce"]
[Result "1-0"]
[WhiteElo "2072"]
[BlackElo "1362"]
[TimeControl "300"]
[EndTime "15:25:42 PDT"]
[Termination "LiamClery2020 won by resignation"]

1. e4 {[%clk 0:04:59.9]} 1... e5 {[%clk 0:04:57]} 2. Nc3 {[%clk 0:04:58.4]} 2...
Nc6 {[%clk 0:04:55.1]} 3. Bc4 {[%clk 0:04:57.5]} 3... d6 {[%clk 0:04:54.6]} 4.
d3 {[%clk 0:04:56.5]} 4... Bd7 {[%clk 0:04:53.6]} 5. Nf3 {[%clk 0:04:55.8]} 5...
f5 {[%clk 0:04:49.8]} 6. O-O {[%clk 0:04:54.9]} 6... fxe4 {[%clk 0:04:49.4]} 7.
dxe4 {[%clk 0:04:54.2]} 7... Qe7 {[%clk 0:04:48.6]} 8. Nd5 {[%clk 0:04:52.7]}
8... Qd8 {[%clk 0:04:45.8]} 9. Bg5 {[%clk 0:04:51.5]} 9... Qc8 {[%clk
0:04:43.1]} 10. b4 {[%clk 0:04:46.4]} 10... h6 {[%clk 0:04:35.2]} 11. Bh4 {[%clk
0:04:44.4]} 11... g5 {[%clk 0:04:34.5]} 12. Bg3 {[%clk 0:04:43.7]} 12... Bg7
{[%clk 0:04:14.2]} 13. b5 {[%clk 0:04:39.8]} 13... Nd8 {[%clk 0:04:11.3]} 14. h4
{[%clk 0:04:31.3]} 14... Be6 {[%clk 0:04:06.6]} 15. hxg5 {[%clk 0:04:28.4]}
15... Bxd5 {[%clk 0:04:04.6]} 16. Qxd5 {[%clk 0:04:27.5]} 16... Ne7 {[%clk
0:03:49.7]} 17. Qd3 {[%clk 0:04:23.9]} 17... hxg5 {[%clk 0:03:39.3]} 18. Nxg5
{[%clk 0:04:22.3]} 18... Qg4 {[%clk 0:03:38.9]} 19. Nh3 {[%clk 0:04:06.7]} 19...
Kd7 {[%clk 0:03:07.7]} 20. Bd5 {[%clk 0:03:57.3]} 20... c6 {[%clk 0:02:50.1]}
21. bxc6+ {[%clk 0:03:56.3]} 21... Ndxc6 {[%clk 0:02:50]} 22. Rab1 {[%clk
0:03:55.1]} 22... Kc7 {[%clk 0:02:42.6]} 23. Qb3 {[%clk 0:03:53.8]} 23... Rab8
{[%clk 0:02:23.3]} 24. Be6 {[%clk 0:03:36.7]} 24... Qg6 {[%clk 0:02:07.9]} 25.
Bd5 {[%clk 0:03:33.7]} 25... Nxd5 {[%clk 0:01:58.8]} 26. Qxd5 {[%clk 0:03:29.8]}
26... Nd4 {[%clk 0:01:54.6]} 27. Rb4 {[%clk 0:03:08.5]} 27... Ne2+ {[%clk
0:01:29.1]} 28. Kh2 {[%clk 0:03:07.2]} 28... Rxh3+ {[%clk 0:01:20.5]} 29. gxh3
{[%clk 0:03:04.7]} 29... b6 {[%clk 0:00:51.6]} 30. Qc4+ {[%clk 0:03:01.2]} 30...
Kd7 {[%clk 0:00:50.3]} 31. Qxe2 {[%clk 0:03:00.1]} 31... Rh8 {[%clk 0:00:50.1]}
32. f4 {[%clk 0:02:54.8]} 32... exf4 {[%clk 0:00:41.4]} 33. Rxf4 {[%clk
0:02:52.1]} 33... Be5 {[%clk 0:00:37.5]} 34. Qg4+ {[%clk 0:02:51]} 34... Qxg4
{[%clk 0:00:21.9]} 35. Rxg4 {[%clk 0:02:50.9]} 35... Bxg3+ {[%clk 0:00:19.9]}
36. Rxg3 {[%clk 0:02:50.8]} 36... Rf8 {[%clk 0:00:18.5]} 1-0

[Event "Live Chess"]
[Site "Chess.com"]
[Date "2023.05.20"]
[Round "-"]
[White "EdenHazard8"]
[Black "birdseed45"]
[Result "1-0"]
[WhiteElo "2061"]
[BlackElo "1877"]
[TimeControl "300"]
[EndTime "15:25:53 PDT"]
[Termination "EdenHazard8 won by resignation"]

1. e4 {[%clk 0:04:58.3]} 1... c5 {[%clk 0:04:58.7]} 2. Nc3 {[%clk 0:04:57.1]}
2... Nc6 {[%clk 0:04:58.2]} 3. f4 {[%clk 0:04:57]} 3... d6 {[%clk 0:04:57.4]} 4.
Nf3 {[%clk 0:04:53]} 4... g6 {[%clk 0:04:56.5]} 5. Bc4 {[%clk 0:04:51.5]} 5...
Bg7 {[%clk 0:04:55.4]} 6. d3 {[%clk 0:04:51.4]} 6... Nf6 {[%clk 0:04:54]} 7. O-O
{[%clk 0:04:50.7]} 7... O-O {[%clk 0:04:49.7]} 8. Qe1 {[%clk 0:04:49.9]} 8... h5
{[%clk 0:04:44.1]} 9. Qh4 {[%clk 0:04:43.7]} 9... a6 {[%clk 0:04:42.4]} 10. f5
{[%clk 0:04:40.1]} 10... b5 {[%clk 0:04:36.9]} 11. Bb3 {[%clk 0:04:38.4]} 11...
e6 {[%clk 0:04:28]} 12. fxg6 {[%clk 0:04:36.9]} 12... fxg6 {[%clk 0:04:22.2]}
13. Bg5 {[%clk 0:04:35.8]} 13... Qe8 {[%clk 0:04:18.4]} 14. Rae1 {[%clk
0:04:24.5]} 14... Na5 {[%clk 0:04:17]} 15. e5 {[%clk 0:04:22.1]} 15... Ng4
{[%clk 0:04:05.8]} 16. exd6 {[%clk 0:04:14.9]} 16... Nxb3 {[%clk 0:04:04]} 17.
axb3 {[%clk 0:04:13.6]} 17... Bd7 {[%clk 0:03:56.7]} 18. Ne4 {[%clk 0:04:10.8]}
18... Bxb2 {[%clk 0:03:45.8]} 19. Nxc5 {[%clk 0:04:07.4]} 19... Rxf3 {[%clk
0:03:35.1]} 20. Rxf3 {[%clk 0:04:04.5]} 20... Bd4+ {[%clk 0:03:33.5]} 21. Kh1
{[%clk 0:04:00.9]} 21... Bxc5 {[%clk 0:03:30.4]} 22. Be7 {[%clk 0:04:00]} 22...
Kg7 {[%clk 0:03:13.4]} 23. Ref1 {[%clk 0:03:54.5]} 23... Ne5 {[%clk 0:03:03.4]}
24. Rf8 {[%clk 0:03:44.1]} 24... Qxf8 {[%clk 0:02:46.8]} 25. Bxf8+ {[%clk
0:03:44]} 25... Rxf8 {[%clk 0:02:44.8]} 26. Qe7+ {[%clk 0:03:42.2]} 26... Rf7
{[%clk 0:02:35.3]} 27. Rxf7+ {[%clk 0:03:39.2]} 27... Nxf7 {[%clk 0:02:34.7]}
28. Qxd7 {[%clk 0:03:38.8]} 28... Bxd6 {[%clk 0:02:34.2]} 29. Qxe6 {[%clk
0:03:37.5]} 1-0